[Event "Titled Tuesday Blitz January 17 Early 2023"]
[White "Albertini, Luca"]
[Black "Injac, Teodora"]
[WhiteFideId "847038"]
[BlackFideId "932400"]
[WhiteElo "2084"]
[BlackElo "2391"]
[Result "0-1"]
[Round "08"]
[TimeControl "180+2"]
[Date "2023.01.17"]
[WhiteClock "0:01:41"]
[BlackClock "0:01:35"]

1. e4 {[%clk 0:02:59]}  g6 {[%clk 0:03:00]} 2. d4 {[%clk 0:02:57]}  Bg7 {[%clk 0:03:01]} 3. c4 {[%clk 0:02:45]}  d6 {[%clk 0:03:00]} 4. Nc3 {[%clk 0:02:45]}  Nf6 {[%clk 0:03:01]} 5. f3 {[%clk 0:02:44]}  O-O {[%clk 0:03:01]} 6. Be3 {[%clk 0:02:45]}  Nbd7 {[%clk 0:02:59]} 7. Qd2 {[%clk 0:02:45]}  a6 {[%clk 0:02:59]} 8. O-O-O {[%clk 0:02:45]}  c5 {[%clk 0:02:59]} 9. d5 {[%clk 0:02:44]}  b5 {[%clk 0:02:55]} 10. cxb5 {[%clk 0:02:42]}  Qa5 {[%clk 0:02:48]} 11. a4 {[%clk 0:02:37]}  Nb6 {[%clk 0:02:39]} 12. Qc2 {[%clk 0:02:32]}  axb5 {[%clk 0:02:34]} 13. Bxb5 {[%clk 0:02:31]}  Bd7 {[%clk 0:02:27]} 14. Nge2 {[%clk 0:02:23]}  Rfb8 {[%clk 0:02:22]} 15. Kd2 {[%clk 0:01:54]}  Bxb5 {[%clk 0:02:00]} 16. axb5 {[%clk 0:01:55]}  Nc4+ {[%clk 0:02:00]} 17. Kd3 {[%clk 0:01:56]}  Qb4 {[%clk 0:01:44]} 18. Rb1 {[%clk 0:01:47]}  Nd7 {[%clk 0:01:37]} 19. b3 {[%clk 0:01:41]}  Nde5# {[%clk 0:01:35]} 0-1


[Site "https://www.chess.com"]

[Event "Titled Tuesday Blitz January 17 Early 2023"]
[White "Heinemann, Josefine"]
[Black "Ordekalog"]
[WhiteFideId "12900460"]
[WhiteElo "2289"]
[BlackElo "2578"]
[Result "0-1"]
[Round "08"]
[TimeControl "180+2"]
[Date "2023.01.17"]
[WhiteClock "0:00:06"]
[BlackClock "0:00:10"]

1. e4 {[%clk 0:03:00]}  d5 {[%clk 0:02:57]} 2. exd5 {[%clk 0:03:00]}  Qxd5 {[%clk 0:02:57]} 3. Nc3 {[%clk 0:02:59]}  Qa5 {[%clk 0:02:57]} 4. d4 {[%clk 0:02:59]}  Nf6 {[%clk 0:02:56]} 5. Bc4 {[%clk 0:02:58]}  Bg4 {[%clk 0:02:54]} 6. Nf3 {[%clk 0:02:57]}  e6 {[%clk 0:02:54]} 7. h3 {[%clk 0:02:55]}  Bxf3 {[%clk 0:02:52]} 8. Qxf3 {[%clk 0:02:54]}  c6 {[%clk 0:02:52]} 9. O-O {[%clk 0:02:53]}  Qc7 {[%clk 0:02:49]} 10. Bf4 {[%clk 0:02:52]}  Bd6 {[%clk 0:02:48]} 11. Bxd6 {[%clk 0:02:47]}  Qxd6 {[%clk 0:02:48]} 12. Rad1 {[%clk 0:02:48]}  Nbd7 {[%clk 0:02:47]} 13. Ne4 {[%clk 0:02:48]}  Nxe4 {[%clk 0:02:46]} 14. Qxe4 {[%clk 0:02:49]}  O-O {[%clk 0:02:43]} 15. Bd3 {[%clk 0:02:45]}  Nf6 {[%clk 0:02:43]} 16. Qh4 {[%clk 0:02:44]}  Rfd8 {[%clk 0:02:40]} 17. c3 {[%clk 0:02:44]}  h6 {[%clk 0:02:30]} 18. Rfe1 {[%clk 0:02:43]}  Rd7 {[%clk 0:02:25]} 19. Re3 {[%clk 0:02:42]}  Rad8 {[%clk 0:02:22]} 20. Rg3 {[%clk 0:02:36]}  Kf8 {[%clk 0:02:21]} 21. Re1 {[%clk 0:02:32]}  c5 {[%clk 0:02:14]} 22. dxc5 {[%clk 0:02:13]}  Qxc5 {[%clk 0:02:13]} 23. Bb1 {[%clk 0:02:13]}  Rd1 {[%clk 0:02:11]} 24. Re3 {[%clk 0:02:09]}  R8d2 {[%clk 0:01:58]} 25. Qf4 {[%clk 0:02:00]}  Ke7 {[%clk 0:01:11]} 26. Re5 {[%clk 0:01:12]}  Rxe1+ {[%clk 0:01:07]} 27. Rxe1 {[%clk 0:01:11]}  Rxb2 {[%clk 0:01:07]} 28. Qg3 {[%clk 0:01:07]}  Qb6 {[%clk 0:00:49]} 29. Bd3 {[%clk 0:01:05]}  Qd6 {[%clk 0:00:45]} 30. Qf3 {[%clk 0:00:58]}  Qd5 {[%clk 0:00:44]} 31. Qg3 {[%clk 0:00:55]}  Qc5 {[%clk 0:00:42]} 32. Rf1 {[%clk 0:00:37]}  g5 {[%clk 0:00:37]} 33. Bb1 {[%clk 0:00:31]}  Qb6 {[%clk 0:00:35]} 34. Bd3 {[%clk 0:00:31]}  Rxa2 {[%clk 0:00:34]} 35. Qf3 {[%clk 0:00:29]}  Qc6 {[%clk 0:00:32]} 36. Qe3 {[%clk 0:00:22]}  Nd5 {[%clk 0:00:27]} 37. Qe4 {[%clk 0:00:18]}  Qxc3 {[%clk 0:00:26]} 38. Qh7 {[%clk 0:00:17]}  Nf6 {[%clk 0:00:23]} 39. Qxh6 {[%clk 0:00:14]}  Qxd3 {[%clk 0:00:22]} 40. Qxg5 {[%clk 0:00:15]}  Qd5 {[%clk 0:00:18]} 41. Qg3 {[%clk 0:00:13]}  Rd2 {[%clk 0:00:17]} 42. Qc7+ {[%clk 0:00:11]}  Nd7 {[%clk 0:00:16]} 43. h4 {[%clk 0:00:10]}  a5 {[%clk 0:00:16]} 44. h5 {[%clk 0:00:09]}  Qxh5 {[%clk 0:00:15]} 45. Qc3 {[%clk 0:00:10]}  Qd5 {[%clk 0:00:14]} 46. Qa3+ {[%clk 0:00:10]}  Ke8 {[%clk 0:00:12]} 47. Qg3 {[%clk 0:00:09]}  Rd1 {[%clk 0:00:10]} 48. Rxd1 {[%clk 0:00:09]}  Qxd1+ {[%clk 0:00:09]} 49. Kh2 {[%clk 0:00:10]}  Qh5+ {[%clk 0:00:10]} 50. Kg1 {[%clk 0:00:09]}  Qd1+ {[%clk 0:00:09]} 51. Kh2 {[%clk 0:00:08]}  Qd5 {[%clk 0:00:10]} 52. Qg8+ {[%clk 0:00:07]}  Ke7 {[%clk 0:00:10]} 53. Qh8 {[%clk 0:00:06]}  Qe5+ {[%clk 0:00:10]} 0-1


[Site "https://www.chess.com"]

[Event "Titled Tuesday Blitz January 17 Early 2023"]
[White "Luukkonen, Tommi"]
[Black "Vivas Zamora, Fabian Ernesto"]
[WhiteFideId "501808"]
[BlackFideId "3902480"]
[WhiteElo "2292"]
[BlackElo "2346"]
[Result "0-1"]
[Round "08"]
[TimeControl "180+2"]
[Date "2023.01.17"]
[WhiteClock "0:01:22"]
[BlackClock "0:00:19"]

1. e4 {[%clk 0:02:59]}  e5 {[%clk 0:02:59]} 2. Nf3 {[%clk 0:02:56]}  Nc6 {[%clk 0:02:58]} 3. Bb5 {[%clk 0:02:56]}  Nf6 {[%clk 0:02:54]} 4. d3 {[%clk 0:02:54]}  Bc5 {[%clk 0:02:54]} 5. c3 {[%clk 0:02:53]}  d5 {[%clk 0:02:50]} 6. Nbd2 {[%clk 0:02:50]}  O-O {[%clk 0:02:43]} 7. O-O {[%clk 0:02:50]}  dxe4 {[%clk 0:02:39]} 8. dxe4 {[%clk 0:02:50]}  Qe7 {[%clk 0:02:29]} 9. h3 {[%clk 0:02:49]}  Rd8 {[%clk 0:02:10]} 10. Qe2 {[%clk 0:02:48]}  Nh5 {[%clk 0:02:09]} 11. Re1 {[%clk 0:02:24]}  Nf4 {[%clk 0:02:01]} 12. Qf1 {[%clk 0:02:22]}  Qf6 {[%clk 0:01:43]} 13. Nb3 {[%clk 0:02:20]}  Nxh3+ {[%clk 0:00:53]} 14. gxh3 {[%clk 0:02:19]}  Qxf3 {[%clk 0:00:46]} 15. Nxc5 {[%clk 0:02:19]}  Bxh3 {[%clk 0:00:45]} 16. Re3 {[%clk 0:02:20]}  Bxf1 {[%clk 0:00:45]} 17. Rxf3 {[%clk 0:02:19]}  Bxb5 {[%clk 0:00:45]} 18. Bg5 {[%clk 0:02:17]}  f6 {[%clk 0:00:44]} 19. Be3 {[%clk 0:02:14]}  b6 {[%clk 0:00:43]} 20. Nb3 {[%clk 0:02:12]}  Rd7 {[%clk 0:00:27]} 21. a4 {[%clk 0:02:11]}  Be2 {[%clk 0:00:22]} 22. Rg3 {[%clk 0:02:11]}  Rad8 {[%clk 0:00:20]} 23. Kg2 {[%clk 0:02:07]}  Rd1 {[%clk 0:00:19]} 24. Rxd1 {[%clk 0:02:06]}  Bxd1 {[%clk 0:00:19]} 25. Nd2 {[%clk 0:02:06]}  Bxa4 {[%clk 0:00:20]} 26. b3 {[%clk 0:02:03]}  Bb5 {[%clk 0:00:20]} 27. c4 {[%clk 0:02:04]}  Ba6 {[%clk 0:00:20]} 28. Nb1 {[%clk 0:02:03]}  Bb7 {[%clk 0:00:20]} 29. f3 {[%clk 0:02:02]}  Nd4 {[%clk 0:00:21]} 30. Nd2 {[%clk 0:02:01]}  Ne6 {[%clk 0:00:20]} 31. Kf2 {[%clk 0:02:00]}  Nf4 {[%clk 0:00:21]} 32. Rg1 {[%clk 0:01:57]}  a5 {[%clk 0:00:20]} 33. Ra1 {[%clk 0:01:44]}  c5 {[%clk 0:00:19]} 34. Ra2 {[%clk 0:01:22]}  Nd3+ {[%clk 0:00:20]} 35. Ke2 {[%clk 0:01:22]}  Nc1+ {[%clk 0:00:19]} 0-1


[Site "https://www.chess.com"]

[Event "Titled Tuesday Blitz January 17 Early 2023"]
[White "Martin Carmona, Gaston Manuel"]
[Black "Devaev, Alexander"]
[WhiteFideId "22284567"]
[BlackFideId "4169395"]
[WhiteElo "2333"]
[BlackElo "2325"]
[Result "1-0"]
[Round "08"]
[TimeControl "180+2"]
[Date "2023.01.17"]
[WhiteClock "0:00:05"]
[BlackClock "0:00:06"]

1. Nf3 {[%clk 0:02:55]}  Nf6 {[%clk 0:02:57]} 2. d4 {[%clk 0:02:55]}  e6 {[%clk 0:02:57]} 3. c4 {[%clk 0:02:56]}  c5 {[%clk 0:02:56]} 4. e3 {[%clk 0:02:53]}  cxd4 {[%clk 0:02:56]} 5. exd4 {[%clk 0:02:54]}  d5 {[%clk 0:02:56]} 6. Nc3 {[%clk 0:02:54]}  Bb4 {[%clk 0:02:57]} 7. cxd5 {[%clk 0:02:52]}  Nxd5 {[%clk 0:02:57]} 8. Bd2 {[%clk 0:02:53]}  Nc6 {[%clk 0:02:57]} 9. Bd3 {[%clk 0:02:50]}  O-O {[%clk 0:02:57]} 10. O-O {[%clk 0:02:47]}  Be7 {[%clk 0:02:54]} 11. a3 {[%clk 0:02:42]}  Bf6 {[%clk 0:02:53]} 12. Ne4 {[%clk 0:02:21]}  Nce7 {[%clk 0:02:53]} 13. Nxf6+ {[%clk 0:02:10]}  Nxf6 {[%clk 0:02:54]} 14. Bg5 {[%clk 0:02:10]}  Qd6 {[%clk 0:02:53]} 15. Ne5 {[%clk 0:02:00]}  Ng6 {[%clk 0:02:51]} 16. Nxg6 {[%clk 0:01:20]}  hxg6 {[%clk 0:02:50]} 17. Qf3 {[%clk 0:01:11]}  Qxd4 {[%clk 0:02:37]} 18. b4 {[%clk 0:01:11]}  Qd5 {[%clk 0:02:30]} 19. Qg3 {[%clk 0:01:08]}  Ne4 {[%clk 0:02:23]} 20. Bxe4 {[%clk 0:01:02]}  Qxe4 {[%clk 0:02:24]} 21. Rfe1 {[%clk 0:01:03]}  Qf5 {[%clk 0:02:19]} 22. Re5 {[%clk 0:00:57]}  Qc2 {[%clk 0:02:18]} 23. Re3 {[%clk 0:00:55]}  f6 {[%clk 0:02:10]} 24. Bf4 {[%clk 0:00:48]}  e5 {[%clk 0:02:08]} 25. Rc3 {[%clk 0:00:41]}  exf4 {[%clk 0:02:01]} 26. Qf3 {[%clk 0:00:42]}  Qf5 {[%clk 0:01:57]} 27. Rc5 {[%clk 0:00:40]}  Qg4 {[%clk 0:01:55]} 28. Qc3 {[%clk 0:00:37]}  Bf5 {[%clk 0:01:25]} 29. h3 {[%clk 0:00:37]}  Qg5 {[%clk 0:01:25]} 30. Re1 {[%clk 0:00:19]}  Rae8 {[%clk 0:01:18]} 31. Rc1 {[%clk 0:00:17]}  f3 {[%clk 0:01:10]} 32. Qxf3 {[%clk 0:00:16]}  Be4 {[%clk 0:01:02]} 33. Qb3+ {[%clk 0:00:14]}  Bd5 {[%clk 0:00:54]} 34. Rxd5 {[%clk 0:00:10]}  Qxc1+ {[%clk 0:00:54]} 35. Rd1+ {[%clk 0:00:11]}  Kh7 {[%clk 0:00:47]} 36. Rxc1 {[%clk 0:00:11]}  Re7 {[%clk 0:00:47]} 37. Rf1 {[%clk 0:00:11]}  Rfe8 {[%clk 0:00:48]} 38. Qg3 {[%clk 0:00:11]}  b6 {[%clk 0:00:48]} 39. Qh4+ {[%clk 0:00:12]}  Kg8 {[%clk 0:00:49]} 40. Qg4 {[%clk 0:00:12]}  Kh7 {[%clk 0:00:49]} 41. h4 {[%clk 0:00:13]}  Re4 {[%clk 0:00:50]} 42. Qg3 {[%clk 0:00:13]}  R8e5 {[%clk 0:00:49]} 43. Rc1 {[%clk 0:00:10]}  Re1+ {[%clk 0:00:46]} 44. Kh2 {[%clk 0:00:10]}  Rxc1 {[%clk 0:00:45]} 45. Qb3 {[%clk 0:00:08]}  Rce1 {[%clk 0:00:41]} 46. g3 {[%clk 0:00:08]}  R1e2 {[%clk 0:00:41]} 47. Kg2 {[%clk 0:00:09]}  Rf5 {[%clk 0:00:40]} 48. Qd3 {[%clk 0:00:05]}  Rfxf2+ {[%clk 0:00:39]} 49. Kg1 {[%clk 0:00:06]}  Rd2 {[%clk 0:00:38]} 50. Qe3 {[%clk 0:00:04]}  Rg2+ {[%clk 0:00:38]} 51. Kf1 {[%clk 0:00:04]}  Rh2 {[%clk 0:00:38]} 52. Kg1 {[%clk 0:00:04]}  Ra2 {[%clk 0:00:38]} 53. Qd3 {[%clk 0:00:03]}  Rhd2 {[%clk 0:00:39]} 54. Qb1 {[%clk 0:00:02]}  Rxa3 {[%clk 0:00:35]} 55. h5 {[%clk 0:00:02]}  Rxg3+ {[%clk 0:00:36]} 56. Kf1 {[%clk 0:00:03]}  Rg5 {[%clk 0:00:35]} 57. hxg6+ {[%clk 0:00:03]}  Rxg6 {[%clk 0:00:35]} 58. b5 {[%clk 0:00:03]}  Rg2 {[%clk 0:00:33]} 59. Qf5 {[%clk 0:00:03]}  Rg1+ {[%clk 0:00:32]} 60. Ke2 {[%clk 0:00:03]}  Rg2+ {[%clk 0:00:32]} 61. Kf1 {[%clk 0:00:03]}  Rg4 {[%clk 0:00:32]} 62. Qh5+ {[%clk 0:00:03]}  Kg8 {[%clk 0:00:32]} 63. Qd5+ {[%clk 0:00:03]}  Kf8 {[%clk 0:00:32]} 64. Qd8+ {[%clk 0:00:03]}  Kf7 {[%clk 0:00:33]} 65. Qd7+ {[%clk 0:00:04]}  Kg8 {[%clk 0:00:34]} 66. Qd5+ {[%clk 0:00:05]}  Kh7 {[%clk 0:00:32]} 67. Qh5+ {[%clk 0:00:05]}  Rh6 {[%clk 0:00:05]} 68. Qxg4 {[%clk 0:00:05]}  Rh1+ {[%clk 0:00:06]} 69. Kf2 {[%clk 0:00:05]} 1-0


[Site "https://www.chess.com"]

[Event "Titled Tuesday Blitz January 17 Early 2023"]
[White "Silva, Pedro Gil Ferreira Da"]
[Black "Goltseva, Ekaterina"]
[WhiteFideId "1946102"]
[BlackFideId "24173770"]
[WhiteElo "2227"]
[BlackElo "2283"]
[Result "1-0"]
[Round "08"]
[TimeControl "180+2"]
[Date "2023.01.17"]
[WhiteClock "0:00:15"]
[BlackClock "0:00:02"]

1. c4 {[%clk 0:02:35]}  e6 {[%clk 0:02:10]} 2. Nf3 {[%clk 0:02:35]}  d5 {[%clk 0:02:07]} 3. g3 {[%clk 0:02:35]}  Nf6 {[%clk 0:02:02]} 4. Bg2 {[%clk 0:02:35]}  d4 {[%clk 0:02:00]} 5. O-O {[%clk 0:02:30]}  c5 {[%clk 0:02:00]} 6. e3 {[%clk 0:02:30]}  Nc6 {[%clk 0:01:58]} 7. exd4 {[%clk 0:02:30]}  cxd4 {[%clk 0:01:59]} 8. d3 {[%clk 0:02:30]}  h6 {[%clk 0:01:59]} 9. a3 {[%clk 0:02:31]}  a5 {[%clk 0:01:58]} 10. Re1 {[%clk 0:02:31]}  Bd6 {[%clk 0:01:58]} 11. Nbd2 {[%clk 0:02:11]}  O-O {[%clk 0:01:57]} 12. Nh4 {[%clk 0:01:55]}  e5 {[%clk 0:01:52]} 13. Ne4 {[%clk 0:01:53]}  Nxe4 {[%clk 0:01:38]} 14. Bxe4 {[%clk 0:01:54]}  Ne7 {[%clk 0:01:38]} 15. Qh5 {[%clk 0:01:49]}  f5 {[%clk 0:01:36]} 16. Bg2 {[%clk 0:01:48]}  Qe8 {[%clk 0:01:24]} 17. Qxe8 {[%clk 0:01:45]}  Rxe8 {[%clk 0:01:25]} 18. Bd2 {[%clk 0:01:28]}  g5 {[%clk 0:01:23]} 19. Nf3 {[%clk 0:01:28]}  Nc6 {[%clk 0:01:18]} 20. h4 {[%clk 0:00:53]}  g4 {[%clk 0:01:15]} 21. Nh2 {[%clk 0:00:53]}  h5 {[%clk 0:01:12]} 22. Bg5 {[%clk 0:00:52]}  Kg7 {[%clk 0:01:05]} 23. Nf1 {[%clk 0:00:52]}  Bd7 {[%clk 0:00:52]} 24. Nd2 {[%clk 0:00:51]}  Ra6 {[%clk 0:00:46]} 25. Rac1 {[%clk 0:00:45]}  Bc5 {[%clk 0:00:32]} 26. Nb3 {[%clk 0:00:39]}  Bf8 {[%clk 0:00:30]} 27. c5 {[%clk 0:00:38]}  a4 {[%clk 0:00:30]} 28. Nd2 {[%clk 0:00:37]}  Ra5 {[%clk 0:00:31]} 29. Nc4 {[%clk 0:00:14]}  Rxc5 {[%clk 0:00:30]} 30. Nb6 {[%clk 0:00:14]}  Be6 {[%clk 0:00:20]} 31. Nxa4 {[%clk 0:00:14]}  Rxc1 {[%clk 0:00:14]} 32. Rxc1 {[%clk 0:00:15]}  Rc8 {[%clk 0:00:13]} 33. Nc5 {[%clk 0:00:15]}  Kf7 {[%clk 0:00:02]} 34. Nxb7 {[%clk 0:00:14]}  Rc7 {[%clk 0:00:01]} 35. Rxc6 {[%clk 0:00:13]}  Rxb7 {[%clk 0:00:01]} 36. Rxe6 {[%clk 0:00:13]}  Rxb2 {[%clk 0:00:02]} 37. Rxe5 {[%clk 0:00:13]}  Rb1+ {[%clk 0:00:02]} 38. Kh2 {[%clk 0:00:13]}  Bd6 {[%clk 0:00:03]} 39. Rxf5+ {[%clk 0:00:13]}  Ke6 {[%clk 0:00:03]} 40. Ra5 {[%clk 0:00:13]}  Rb2 {[%clk 0:00:04]} 41. Bf4 {[%clk 0:00:13]}  Bxf4 {[%clk 0:00:02]} 42. gxf4 {[%clk 0:00:14]}  Rxf2 {[%clk 0:00:03]} 43. Rxh5 {[%clk 0:00:14]}  Rxf4 {[%clk 0:00:03]} 44. Rg5 {[%clk 0:00:15]}  Kf6 {[%clk 0:00:02]} 45. Kg3 {[%clk 0:00:15]} 1-0


[Site "https://www.chess.com"]

[Event "Titled Tuesday Blitz January 17 Early 2023"]
[White "Sargissyan, Sargis"]
[Black "Shuvalov, Evgenij"]
[WhiteFideId "13303210"]
[BlackFideId "4187237"]
[WhiteElo "2234"]
[BlackElo "2038"]
[Result "1-0"]
[Round "08"]
[TimeControl "180+2"]
[Date "2023.01.17"]
[WhiteClock "0:00:10"]
[BlackClock "0:00:03"]

1. e4 {[%clk 0:03:00]}  e6 {[%clk 0:02:59]} 2. d4 {[%clk 0:03:00]}  d5 {[%clk 0:02:59]} 3. Nc3 {[%clk 0:03:01]}  Bb4 {[%clk 0:02:59]} 4. e5 {[%clk 0:03:01]}  c5 {[%clk 0:02:59]} 5. a3 {[%clk 0:03:02]}  Bxc3+ {[%clk 0:02:59]} 6. bxc3 {[%clk 0:03:03]}  Ne7 {[%clk 0:02:59]} 7. Qg4 {[%clk 0:03:03]}  cxd4 {[%clk 0:02:57]} 8. Bd3 {[%clk 0:03:03]}  Qa5 {[%clk 0:02:56]} 9. Ne2 {[%clk 0:03:00]}  O-O {[%clk 0:02:55]} 10. Bg5 {[%clk 0:02:44]}  Ng6 {[%clk 0:02:52]} 11. f4 {[%clk 0:02:44]}  Nd7 {[%clk 0:02:38]} 12. O-O {[%clk 0:02:24]}  dxc3 {[%clk 0:02:35]} 13. h4 {[%clk 0:02:23]}  f5 {[%clk 0:02:30]} 14. exf6 {[%clk 0:02:23]}  Nxf6 {[%clk 0:02:31]} 15. Bxf6 {[%clk 0:02:22]}  Rxf6 {[%clk 0:02:30]} 16. Ng3 {[%clk 0:02:12]}  Rf7 {[%clk 0:00:28]} 17. Bxg6 {[%clk 0:02:06]}  hxg6 {[%clk 0:00:29]} 18. Qxg6 {[%clk 0:02:06]}  Bd7 {[%clk 0:00:22]} 19. h5 {[%clk 0:01:51]}  Rf6 {[%clk 0:00:21]} 20. Qg5 {[%clk 0:01:49]}  Raf8 {[%clk 0:00:20]} 21. Rf3 {[%clk 0:01:17]}  Qc7 {[%clk 0:00:20]} 22. Raf1 {[%clk 0:01:14]}  d4 {[%clk 0:00:20]} 23. h6 {[%clk 0:01:13]}  Rxh6 {[%clk 0:00:19]} 24. Nh5 {[%clk 0:01:13]}  Be8 {[%clk 0:00:19]} 25. Rh3 {[%clk 0:01:10]}  Bxh5 {[%clk 0:00:18]} 26. Rxh5 {[%clk 0:01:07]}  Rxh5 {[%clk 0:00:18]} 27. Qxh5 {[%clk 0:01:08]}  Qf7 {[%clk 0:00:16]} 28. Qe5 {[%clk 0:01:07]}  Qf6 {[%clk 0:00:16]} 29. Qe4 {[%clk 0:01:06]}  e5 {[%clk 0:00:16]} 30. f5 {[%clk 0:01:02]}  Rf7 {[%clk 0:00:15]} 31. Rf3 {[%clk 0:01:01]}  Qd6 {[%clk 0:00:15]} 32. a4 {[%clk 0:00:58]}  b6 {[%clk 0:00:14]} 33. Qa8+ {[%clk 0:00:57]}  Rf8 {[%clk 0:00:14]} 34. Qe4 {[%clk 0:00:55]}  Rd8 {[%clk 0:00:13]} 35. Rh3 {[%clk 0:00:54]}  Qd5 {[%clk 0:00:13]} 36. Qh4 {[%clk 0:00:54]}  Kf7 {[%clk 0:00:11]} 37. Qh5+ {[%clk 0:00:54]}  Ke7 {[%clk 0:00:12]} 38. Qg5+ {[%clk 0:00:54]}  Kd7 {[%clk 0:00:12]} 39. Qxg7+ {[%clk 0:00:54]}  Kc8 {[%clk 0:00:12]} 40. Rh7 {[%clk 0:00:53]}  Rd7 {[%clk 0:00:11]} 41. Qh8+ {[%clk 0:00:24]}  Kb7 {[%clk 0:00:10]} 42. Rxd7+ {[%clk 0:00:18]}  Qxd7 {[%clk 0:00:11]} 43. Qxe5 {[%clk 0:00:18]}  d3 {[%clk 0:00:12]} 44. Qe4+ {[%clk 0:00:18]}  Ka6 {[%clk 0:00:10]} 45. cxd3 {[%clk 0:00:17]}  Ka5 {[%clk 0:00:10]} 46. Qc4 {[%clk 0:00:16]}  Qxa4 {[%clk 0:00:08]} 47. Qxc3+ {[%clk 0:00:15]}  Qb4 {[%clk 0:00:08]} 48. Qa1+ {[%clk 0:00:15]}  Kb5 {[%clk 0:00:08]} 49. Qe5+ {[%clk 0:00:14]}  Ka4 {[%clk 0:00:08]} 50. f6 {[%clk 0:00:14]}  Qb1+ {[%clk 0:00:05]} 51. Kh2 {[%clk 0:00:13]}  Qxd3 {[%clk 0:00:05]} 52. Qf4+ {[%clk 0:00:13]}  Kb3 {[%clk 0:00:04]} 53. f7 {[%clk 0:00:14]}  Qh7+ {[%clk 0:00:04]} 54. Kg1 {[%clk 0:00:13]}  Qb1+ {[%clk 0:00:04]} 55. Qf1 {[%clk 0:00:12]}  Qh7 {[%clk 0:00:02]} 56. f8=Q {[%clk 0:00:11]}  b5 {[%clk 0:00:02]} 57. Q8f3+ {[%clk 0:00:11]}  Kb4 {[%clk 0:00:02]} 58. Qf4+ {[%clk 0:00:10]}  Ka5 {[%clk 0:00:02]} 59. Qa1+ {[%clk 0:00:09]}  Kb6 {[%clk 0:00:03]} 60. Qff6+ {[%clk 0:00:09]}  Kc5 {[%clk 0:00:03]} 61. Qac3+ {[%clk 0:00:10]}  Kd5 {[%clk 0:00:03]} 62. Qcd4# {[%clk 0:00:10]} 1-0


[Site "https://www.chess.com"]

[Event "Titled Tuesday Blitz January 17 Early 2023"]
[White "Hoffmann, Asa"]
[Black "Nguyen Hong Nhung"]
[WhiteFideId "2001470"]
[BlackFideId "12412201"]
[WhiteElo "2185"]
[BlackElo "2003"]
[Result "0-1"]
[Round "08"]
[TimeControl "180+2"]
[Date "2023.01.17"]
[WhiteClock "0:00:12"]
[BlackClock "0:00:20"]

1. d4 {[%clk 0:02:51]}  Nf6 {[%clk 0:02:58]} 2. Bg5 {[%clk 0:02:51]}  c5 {[%clk 0:02:56]} 3. d5 {[%clk 0:02:50]}  g6 {[%clk 0:02:49]} 4. Nc3 {[%clk 0:02:48]}  Bg7 {[%clk 0:02:45]} 5. e4 {[%clk 0:02:48]}  d6 {[%clk 0:02:45]} 6. Qd2 {[%clk 0:02:47]}  a6 {[%clk 0:02:42]} 7. a4 {[%clk 0:02:47]}  Nbd7 {[%clk 0:02:28]} 8. f3 {[%clk 0:02:46]}  Rb8 {[%clk 0:02:26]} 9. Nh3 {[%clk 0:02:41]}  Qa5 {[%clk 0:02:21]} 10. Ra3 {[%clk 0:02:37]}  Ne5 {[%clk 0:02:09]} 11. Nf2 {[%clk 0:02:34]}  Qc7 {[%clk 0:01:55]} 12. h3 {[%clk 0:02:28]}  Nh5 {[%clk 0:01:47]} 13. f4 {[%clk 0:02:19]}  Nd7 {[%clk 0:01:42]} 14. Qe3 {[%clk 0:02:10]}  Bd4 {[%clk 0:01:38]} 15. Qf3 {[%clk 0:02:08]}  c4 {[%clk 0:01:34]} 16. g4 {[%clk 0:02:04]}  Nhf6 {[%clk 0:01:27]} 17. Be2 {[%clk 0:01:54]}  b5 {[%clk 0:01:25]} 18. axb5 {[%clk 0:01:52]}  axb5 {[%clk 0:01:26]} 19. Ncd1 {[%clk 0:01:48]}  b4 {[%clk 0:01:14]} 20. Ra1 {[%clk 0:01:46]}  h6 {[%clk 0:01:10]} 21. Bh4 {[%clk 0:01:45]}  Qc5 {[%clk 0:00:51]} 22. c3 {[%clk 0:01:43]}  bxc3 {[%clk 0:00:50]} 23. bxc3 {[%clk 0:01:43]}  Bxf2+ {[%clk 0:00:49]} 24. Bxf2 {[%clk 0:01:43]}  Qb5 {[%clk 0:00:47]} 25. Bd4 {[%clk 0:01:42]}  Nc5 {[%clk 0:00:40]} 26. O-O {[%clk 0:01:40]}  Ncxe4 {[%clk 0:00:37]} 27. Ne3 {[%clk 0:01:35]}  O-O {[%clk 0:00:34]} 28. Bxc4 {[%clk 0:01:33]}  Qb2 {[%clk 0:00:31]} 29. Qe2 {[%clk 0:01:22]}  Nd2 {[%clk 0:00:26]} 30. Rfe1 {[%clk 0:01:14]}  Nxc4 {[%clk 0:00:25]} 31. Nxc4 {[%clk 0:01:12]}  Qxe2 {[%clk 0:00:21]} 32. Rxe2 {[%clk 0:01:12]}  Nxd5 {[%clk 0:00:22]} 33. Na5 {[%clk 0:01:02]}  Be6 {[%clk 0:00:19]} 34. Nc6 {[%clk 0:00:55]}  Rb7 {[%clk 0:00:20]} 35. Rf1 {[%clk 0:00:54]}  Rc8 {[%clk 0:00:18]} 36. Nxe7+ {[%clk 0:00:51]}  Rxe7 {[%clk 0:00:19]} 37. f5 {[%clk 0:00:51]}  gxf5 {[%clk 0:00:20]} 38. gxf5 {[%clk 0:00:51]}  Bd7 {[%clk 0:00:20]} 39. Rg2+ {[%clk 0:00:47]}  Kf8 {[%clk 0:00:21]} 40. Bg7+ {[%clk 0:00:42]}  Ke8 {[%clk 0:00:21]} 41. Bxh6 {[%clk 0:00:42]}  Kd8 {[%clk 0:00:20]} 42. Rd1 {[%clk 0:00:38]}  Ne3 {[%clk 0:00:19]} 43. Rg8+ {[%clk 0:00:36]}  Kc7 {[%clk 0:00:19]} 44. Rxc8+ {[%clk 0:00:35]}  Bxc8 {[%clk 0:00:20]} 45. Rd3 {[%clk 0:00:31]}  Nxf5 {[%clk 0:00:20]} 46. Bf4 {[%clk 0:00:31]}  Re4 {[%clk 0:00:19]} 47. Bh2 {[%clk 0:00:29]}  Be6 {[%clk 0:00:20]} 48. Kf2 {[%clk 0:00:26]}  Rc4 {[%clk 0:00:20]} 49. Ke2 {[%clk 0:00:19]}  Kc6 {[%clk 0:00:20]} 50. Kd2 {[%clk 0:00:19]}  Ra4 {[%clk 0:00:20]} 51. Kc1 {[%clk 0:00:14]}  Ra2 {[%clk 0:00:20]} 52. Bf4 {[%clk 0:00:13]}  Rf2 {[%clk 0:00:20]} 53. Bd2 {[%clk 0:00:12]}  Bc4 {[%clk 0:00:20]} 0-1


[Site "https://www.chess.com"]